fUSD/lending_fUSD_20250320
["ID","MTS","AMOUNT","RATE_DAILY","PERIOD"]
[356472757,1742506257303,-500.0,0.00032876,2]
[356472758,1742506257311,-500.0,0.00032876,2]
[356472759,1742506257320,-500.0,0.00032876,2]
[356472760,1742506257329,-500.0,0.00032876,2]
[356472761,1742506257339,-500.0,0.00032876,2]
[356472762,1742506257348,-500.0,0.00032876,2]
[356472763,1742506257357,-500.0,0.00032876,2]
[356472764,1742506257367,-500.0,0.00032876,2]
[356472765,1742506257376,-500.0,0.00032876,2]
[356472766,1742506257385,-500.0,0.00032876,2]
[356472767,1742506257395,-394.22223153,0.00032876,2]
[356472768,1742506257404,-500.0,0.00032876,2]
[356472769,1742506257413,-500.0,0.00032876,2]
[356472770,1742506257422,-167.9639324,0.00032876,2]
[356472771,1742506257431,-500.0,0.00032876,2]
[356472772,1742506257440,-500.0,0.00032876,2]
[356472773,1742506257450,-2238.13,0.00032877,2]
[356472774,1742506257459,-151.0,0.00032877,7]
[356472775,1742506257468,-151.0,0.00032877,7]
[356472776,1742506257478,-151.0,0.00032877,7]
[356472777,1742506257487,-708.68,0.00032877,2]
[356472778,1742506257496,-151.0,0.00032877,7]
[356472779,1742506257506,-151.0,0.00032877,7]
[356472780,1742506257515,-151.0,0.00032877,7]
[356472781,1742506257524,-25372.09523252,0.00032888,120]
[356472782,1742506257533,-151.0,0.00032888,7]
[356472783,1742506257543,-151.0,0.00032888,7]
[356472784,1742506257552,-283.611849,0.00032888,7]
[356472785,1742506257561,-151.0,0.00032888,7]
[356472786,1742506257570,-188.274816,0.00032888,7]
[356472787,1742506257580,-283.611849,0.00032888,7]
[356472788,1742506257589,-393.045796,0.00032888,7]
[356472789,1742506257598,-393.045796,0.00032888,7]
[356472790,1742506257607,-156.36,0.00032922,120]
[356472791,1742506257616,-153.0,0.00032961,2]
[356472792,1742506257625,-517.912091,0.00033,14]
[356472793,1742506257634,-550.0,0.00033,2]
[356472794,1742506257644,-2000.0,0.00033107,5]
[356472795,1742506257653,-300.0,0.00033107,5]
[356472796,1742506257662,-5800.0,0.00033463,2]
[356472797,1742506257671,-5800.0,0.00033471,2]
[356472798,1742506257680,-5800.0,0.0003348,2]
[356472799,1742506257689,-5800.0,0.00033488,2]
[356472800,1742506257698,-5800.0,0.00033497,2]
[356472801,1742506257707,-151.0,0.000335,7]
[356472802,1742506257717,-242.54658,0.000335,7]
[356472803,1742506257727,-585.81,0.000335,31]
[356472804,1742506257737,-585.81,0.000335,31]
[356472805,1742506257746,-585.81,0.000335,31]
[356472806,1742506257756,-585.81,0.000335,31]
[356472807,1742506257765,-585.81,0.000335,31]
[356472808,1742506257774,-585.81,0.000335,31]
[356472809,1742506257784,-585.81,0.000335,31]
[356472810,1742506257792,-585.81,0.000335,31]
[356472811,1742506257802,-585.81,0.000335,31]
[356472812,1742506257811,-585.81,0.000335,31]
[356472813,1742506257820,-585.81,0.000335,31]
[356472814,1742506257829,-585.81,0.000335,31]
[356472815,1742506257838,-151.0,0.000335,7]
[356472816,1742506257847,-151.0,0.000335,7]
[356472817,1742506257855,-151.0,0.000335,7]
[356472818,1742506257865,-151.0,0.000335,7]
[356472819,1742506257874,-153.875231,0.000335,7]
[356472820,1742506257883,-161.198674,0.000335,7]
[356472821,1742506257892,-161.198674,0.000335,7]
[356472822,1742506257901,-297.900214,0.000335,7]
[356472823,1742506257910,-297.900214,0.000335,7]
[356472824,1742506257919,-5800.0,0.00033505,2]
[356472825,1742506257928,-5800.0,0.00033514,2]
[356472826,1742506257937,-5800.0,0.00033522,2]
[356472827,1742506257949,-5800.0,0.00033531,2]
[356472828,1742506257958,-2316.42134716,0.00033685,2]
[356472829,1742506257967,-412.93445109,0.00033774,5]
[356472830,1742506257976,-150.0,0.00033848,120]
[356472831,1742506257985,-2742.41592307,0.00034,120]
[356472832,1742506257996,-352.91,0.00034246,2]
[356472833,1742506258005,-150.0,0.00034548,10]
[356472834,1742506258014,-5000.0,0.00034561,2]
[356472835,1742506258025,-1015.13,0.00034581,2]
[356472836,1742506258034,-153.0,0.00034609,2]
[356472837,1742506258043,-154.45,0.00034612,2]
[356472838,1742506258051,-150.0,0.00034612,2]
[356472839,1742506258060,-150.0,0.00034612,2]
[356472840,1742506258069,-3572.04212591,0.00035,30]
[356472841,1742506258079,-600.0,0.00035,2]
[356472842,1742506258087,-233.0,0.00035,2]
[356472843,1742506258097,-537.7,0.00035068,2]
[356472844,1742506258106,-233.00689951,0.00035234,120]
[356472845,1742506258115,-161.10206231,0.00035234,120]
[356472846,1742506258124,-233.0,0.00035274,2]
[356472847,1742506258133,-352.91,0.00035616,2]
[356472848,1742506258143,-411.72523883,0.00035616,7]
[356472849,1742506258152,-2432.81375063,0.00035914,7]
[356472850,1742506258161,-300.0,0.00035914,7]
[356472851,1742506258171,-1767.527,0.00036457,45]
[356472852,1742506258182,-391.12,0.00036651,2]
[356472853,1742506258192,-442.66,0.00036651,2]
[356472854,1742506258203,-780.28,0.00036651,2]
[356472855,1742506258212,-780.28,0.00036651,2]
[356472856,1742506258222,-442.66,0.00036651,2]
[356472857,1742506258232,-780.28,0.00036651,2]
[356472858,1742506258315,-442.66,0.00036651,2]
[356472859,1742506258331,-780.28,0.00036651,2]
[356472860,1742506258342,-442.66,0.00036651,2]
[356472861,1742506258351,-780.28,0.00036651,2]
[356472862,1742506258361,-442.66,0.00036651,2]
[356472863,1742506258370,-442.66,0.00036651,2]
[356472864,1742506258380,-780.28,0.00036651,2]
[356472865,1742506258389,-780.28,0.00036651,2]
[356472866,1742506258399,-442.66,0.00036651,2]
[356472867,1742506258408,-233.0,0.0003675,2]
[356472868,1742506258418,-304.84,0.00036788,2]
[356472869,1742506258427,-345.79,0.00036788,2]
[356472870,1742506258437,-301.08,0.00036788,2]
[356472871,1742506258447,-225.58,0.00036788,2]
[356472872,1742506258457,-150.0,0.00036788,2]
[356472873,1742506258467,-441.98,0.00036788,2]
[356472874,1742506258476,-150.0,0.00036788,2]
[356472875,1742506258486,-150.0,0.00036788,2]
[356472876,1742506258496,-441.98,0.00036788,2]
[356472877,1742506258506,-150.0,0.00036788,2]
[356472878,1742506258515,-345.79,0.00036788,2]
[356472879,1742506258524,-441.98,0.00036788,2]
[356472880,1742506258534,-150.0,0.00036788,2]
[356472881,1742506258543,-150.0,0.00036788,2]
[356472882,1742506258552,-150.0,0.00036788,2]
[356472883,1742506258562,-345.79,0.00036788,2]
[356472884,1742506258571,-345.79,0.00036788,2]
[356472885,1742506258581,-150.0,0.00036788,2]
[356472886,1742506258591,-441.98,0.00036788,2]
[356472887,1742506258601,-150.0,0.00036788,2]
[356472888,1742506258610,-150.0,0.00036788,2]
[356472889,1742506258620,-150.0,0.00036788,2]
[356472890,1742506258630,-345.79,0.00036788,2]
[356472891,1742506258640,-441.98,0.00036788,2]
[356472892,1742506258649,-150.0,0.00036788,2]
[356472893,1742506258659,-441.98,0.00036788,2]
[356472894,1742506258669,-741.36,0.00036788,2]
[356472895,1742506258679,-150.0,0.00036788,2]
[356472896,1742506258689,-303.46,0.00036788,2]
[356472897,1742506258698,-150.0,0.00036788,2]
[356472898,1742506258707,-441.98,0.00036788,2]
[356472899,1742506258717,-150.0,0.00036788,2]
[356472900,1742506258727,-1015.13,0.00036845,2]
[356472901,1742506258736,-352.91,0.00036986,2]
[356472902,1742506258745,-151517.61946666,0.00037,2]
[356472903,1742506258755,-151.0,0.00037,7]
[356472904,1742506258765,-650.0,0.00037,2]
[356472905,1742506258775,-151.0,0.00037,7]
[356472906,1742506258784,-151.0,0.00037,7]
[356472907,1742506258794,-151.0,0.00037,7]
[356472908,1742506258804,-151.0,0.00037,7]
[356472909,1742506258813,-151.0,0.00037,7]
[356472910,1742506258822,-163.293184,0.00037,7]
[356472911,1742506258832,-163.293184,0.00037,7]
[356472912,1742506258841,-2315.0,0.00037,117]
[356472913,1742506258850,-151.0,0.00037,7]
[356472914,1742506258860,-158.65,0.00037,2]
[356472915,1742506258870,-151.0,0.00037,7]
[356472916,1742506258879,-151.0,0.00037,7]
[356472917,1742506258888,-151.0,0.00037,7]
[356472918,1742506258898,-151.0,0.00037,7]
[356472919,1742506258907,-151.0,0.00037,7]
[356472920,1742506258917,-283.611849,0.00037,7]
[356472921,1742506258927,-151.0,0.00037,7]
[356472922,1742506258936,-283.611849,0.00037,7]
[356472923,1742506258949,-393.045796,0.00037,7]
[356472924,1742506258959,-393.045796,0.00037,7]
[356472925,1742506258968,-151.453873,0.00037,7]
[356472926,1742506258978,-151.453873,0.00037,7]
[356472927,1742506258988,-257.465456,0.00037,7]
[356472928,1742506258997,-151.0,0.00037,7]
[356472929,1742506259007,-176.032,0.00037,7]
[356472930,1742506259016,-151.0,0.00037,7]
[356472931,1742506259027,-151.0,0.00037,7]
[356472932,1742506259037,-160.687897,0.00037,7]
[356472933,1742506259046,-160.687897,0.00037,7]
[356472934,1742506259055,-550.594901,0.00037,7]
[356472935,1742506259064,-550.594901,0.00037,7]
[356472936,1742506259074,-151.0,0.00037,7]
[356472937,1742506259083,-153.487853,0.00037,7]
[356472938,1742506259092,-153.487853,0.00037,7]
[356472939,1742506259102,-176.954312,0.00037,7]
[356472940,1742506259111,-176.954312,0.00037,7]
[356472941,1742506259120,-151.0,0.00037,7]
[356472942,1742506259129,-151.0,0.00037,7]
[356472943,1742506259139,-151.0,0.00037,7]
[356472944,1742506259148,-229.334799,0.00037,7]
[356472945,1742506259158,-229.334799,0.00037,7]
[356472946,1742506259167,-316.412486,0.00037,7]
[356472947,1742506259175,-316.412486,0.00037,7]
[356472948,1742506259185,-151.0,0.00037,7]
[356472949,1742506259194,-2852.858928,0.00037,7]
[356472950,1742506259204,-2852.858928,0.00037,7]
[356472951,1742506259213,-252.38,0.00037062,2]
[356472952,1742506259223,-442.66,0.0003761,2]
[356472953,1742506259232,-442.66,0.0003761,2]
[356472954,1742506259241,-150.0,0.0003761,2]
[356472955,1742506259250,-150.0,0.0003761,2]
[356472956,1742506259259,-780.28,0.0003761,2]
[356472957,1742506259268,-442.66,0.0003761,2]
[356472958,1742506259277,-780.28,0.0003761,2]
[356472959,1742506259286,-780.28,0.0003761,2]
[356472960,1742506259295,-442.66,0.0003761,2]
[356472961,1742506259304,-780.28,0.0003761,2]
[356472962,1742506259314,-780.28,0.0003761,2]
[356472963,1742506259323,-614.48,0.0003761,2]
[356472964,1742506259332,-442.66,0.0003761,2]
[356472965,1742506259341,-442.66,0.0003761,2]
[356472966,1742506259351,-442.66,0.0003761,2]
[356472967,1742506259360,-442.66,0.0003761,2]
[356472968,1742506259369,-256.77,0.0003761,2]
[356472969,1742506259378,-150.0,0.0003761,2]
[356472970,1742506259387,-773.79,0.0003761,2]
[356472971,1742506259396,-150.0,0.0003761,2]
[356472972,1742506259405,-150.0,0.0003761,2]
[356472973,1742506259415,-150.0,0.0003761,2]
[356472974,1742506259424,-150.0,0.0003761,2]
[356472975,1742506259433,-441.21,0.0003782,2]
[356472976,1742506259443,-150.0,0.0003782,2]
[356472977,1742506259452,-153.0,0.0003807,2]
[356472978,1742506259462,-352.91,0.00038356,2]
[356472979,1742506259472,-435.42680831,0.00038356,7]
[356472980,1742506259482,-365.74,0.00038443,2]
[356472981,1742506259492,-236.0,0.00038588,14]
[356472982,1742506259501,-300.0,0.00038721,7]
[356472983,1742506259511,-1749.9654,0.00038888,30]
[356472984,1742506259520,-151.0,0.000389,14]
[356472985,1742506259610,-585.81,0.000389,31]
[356472986,1742506259620,-585.81,0.000389,31]
[356472987,1742506259630,-585.81,0.000389,31]
[356472988,1742506259639,-585.81,0.000389,31]
[356472989,1742506259648,-585.81,0.000389,31]
[356472990,1742506259658,-585.81,0.000389,31]
[356472991,1742506259667,-585.81,0.000389,31]
[356472992,1742506259677,-585.81,0.000389,31]
[356472993,1742506259687,-585.81,0.000389,31]
[356472994,1742506259696,-585.81,0.000389,31]
[356472995,1742506259705,-585.81,0.000389,31]
[356472996,1742506259715,-585.81,0.000389,31]
[356472997,1742506259724,-585.81,0.000389,31]
[356472998,1742506259735,-585.81,0.000389,31]
[356472999,1742506259745,-585.81,0.000389,31]
[356473000,1742506259754,-585.81,0.000389,31]
[356473001,1742506259764,-585.81,0.000389,31]
[356473002,1742506259774,-585.81,0.000389,31]
[356473003,1742506259783,-585.81,0.000389,31]
[356473004,1742506259793,-585.81,0.000389,31]
[356473005,1742506259803,-585.81,0.000389,31]
[356473006,1742506259813,-585.81,0.000389,31]
[356473007,1742506259822,-585.81,0.000389,31]
[356473008,1742506259832,-585.81,0.000389,31]
[356473009,1742506259842,-151.0,0.000389,14]
[356473010,1742506259851,-151.0,0.000389,14]
[356473011,1742506259860,-151.0,0.000389,14]
[356473012,1742506259870,-185.357375,0.000389,14]
[356473013,1742506259879,-161.198674,0.000389,14]
[356473014,1742506259890,-161.198674,0.000389,14]
[356473015,1742506259899,-297.900214,0.000389,14]
[356473016,1742506259908,-297.900214,0.000389,14]
[356473017,1742506259918,-700.0,0.00039,2]
[356473018,1742506259927,-41769.95965385,0.0003901,2]
[356473019,1742506259937,-1015.13,0.00039109,2]
[356473020,1742506259947,-352.91,0.00039726,2]
[356473021,1742506259959,-99999.99999901,0.0003988,2]
[356473022,1742506259969,-16493.52921164,0.0004,2]
[356473023,1742506259979,-229.334799,0.0004,14]
[356473024,1742506259987,-229.334798,0.0004,14]
[356473025,1742506259998,-316.412486,0.0004,14]
[356473026,1742506260008,-316.412482,0.0004,14]
[356473027,1742506260018,-153.441615,0.0004,14]
[356473028,1742506260029,-2852.858928,0.0004,14]
[356473029,1742506260039,-2852.858922,0.0004,14]
[356473030,1742506260049,-787.0,0.00040271,2]
[356473031,1742506260059,-1272.0,0.00040271,2]
[356473032,1742506260068,-907.0,0.00040271,2]
[356473033,1742506260078,-4082.0,0.00040271,2]
[356473034,1742506260088,-1430.0,0.00040271,2]
[356473035,1742506260097,-542.0,0.00040271,2]
[356473036,1742506260106,-1115.0,0.00040271,2]
[356473037,1742506260116,-645.0,0.00040271,2]
[356473038,1742506260126,-1316.902,0.00040271,2]
[356473039,1742506260136,-2035.0,0.00040271,2]
[356473040,1742506260146,-642.0,0.00040271,2]
[356473041,1742506260155,-151.0,0.00040271,2]
[356473042,1742506260165,-43484.72337573,0.0004048,10]
[356473043,1742506260179,-151.0,0.0004048,14]
[356473044,1742506260199,-151.0,0.0004048,14]
[356473045,1742506260218,-278.555689,0.0004048,14]
[356473046,1742506260240,-151.0,0.0004048,14]
[356473047,1742506260257,-151.0,0.0004048,14]
[356473048,1742506260275,-151.0,0.0004048,14]
[356473049,1742506260294,-163.293184,0.0004048,14]
[356473050,1742506260313,-163.293184,0.0004048,14]
[356473051,1742506260332,-294.229292,0.0004048,14]
[356473052,1742506260349,-151.0,0.0004048,14]
[356473053,1742506260367,-151.0,0.0004048,14]
[356473054,1742506260385,-151.0,0.0004048,14]
[356473055,1742506260400,-151.0,0.0004048,14]
[356473056,1742506260419,-151.0,0.0004048,14]
[356473057,1742506260431,-151.0,0.0004048,14]
[356473058,1742506260448,-283.611849,0.0004048,14]
[356473059,1742506260462,-283.611849,0.0004048,14]
[356473060,1742506260477,-393.045796,0.0004048,14]
[356473061,1742506260491,-393.045796,0.0004048,14]
[356473062,1742506260506,-151.453873,0.0004048,14]
[356473063,1742506260520,-151.453873,0.0004048,14]
[356473064,1742506260535,-151.0,0.0004048,14]
[356473065,1742506260549,-151.0,0.0004048,14]
[356473066,1742506260563,-151.0,0.0004048,14]
[356473067,1742506260578,-160.687897,0.0004048,14]
[356473068,1742506260592,-160.687897,0.0004048,14]
[356473069,1742506260607,-550.594901,0.0004048,14]
[356473070,1742506260622,-550.594901,0.0004048,14]
[356473071,1742506260635,-151.0,0.0004048,14]
[356473072,1742506260649,-153.487853,0.0004048,14]
[356473073,1742506260664,-153.487853,0.0004048,14]
[356473074,1742506260678,-176.954312,0.0004048,14]
[356473075,1742506260693,-176.954312,0.0004048,14]
[356473076,1742506260707,-750.0,0.00041,2]
[356473077,1742506260721,-2324.3237314,0.00041046,30]
[356473078,1742506260737,-1000.0,0.00041095,120]
[356473079,1742506260753,-352.91,0.00041095,120]
[356473080,1742506260768,-150.19,0.00041096,2]
[356473081,1742506260782,-156.36,0.00041132,120]
[356473082,1742506260797,-233.0,0.0004116,90]
[356473083,1742506260812,-1015.13,0.00041373,2]
[356473084,1742506260827,-300.0,0.00041528,10]
[356473085,1742506260841,-153.0,0.00041531,90]
[356473086,1742506260855,-2132.78,0.00042,15]
[356473087,1742506260869,-3041.91854113,0.00042,120]
[356473088,1742506260884,-2403.62,0.00042,120]
[356473089,1742506260898,-3326.95,0.00042,120]
[356473090,1742506260913,-2637.88,0.00042,120]
[356473091,1742506260927,-2781.72,0.00042,120]
[356473092,1742506260942,-2608.25,0.00042,120]
[356473093,1742506260960,-188.818107,0.00042,14]
[356473094,1742506260975,-151.0,0.00042,14]
[356473095,1742506260991,-246.836302,0.00042,14]
[356473096,1742506261006,-150.19,0.00042305,2]
[356473097,1742506261021,-352.91,0.00042465,120]
[356473098,1742506261037,-27893.63788518,0.00042627,30]
[356473099,1742506261052,-151.0,0.00042627,14]
[356473100,1742506261066,-151.0,0.00042627,14]
[356473101,1742506261082,-151.0,0.00042627,14]
[356473102,1742506261208,-151.0,0.00042627,14]
[356473103,1742506261218,-161.198674,0.00042627,14]
[356473104,1742506261228,-161.198674,0.00042627,14]
[356473105,1742506261238,-297.900214,0.00042627,14]
[356473106,1742506261248,-174.47,0.0004274,91]
[356473107,1742506261257,-2823.26451958,0.00043,120]
[356473108,1742506261267,-62207.30234163,0.00043,10]
[356473109,1742506261276,-1000.0,0.00043,60]
[356473110,1742506261286,-800.0,0.00043,2]
[356473111,1742506261296,-787.0,0.00043271,2]
[356473112,1742506261305,-1272.0,0.00043271,2]
[356473113,1742506261315,-907.0,0.00043271,2]
[356473114,1742506261324,-4082.0,0.00043271,2]
[356473115,1742506261334,-1430.0,0.00043271,2]
[356473116,1742506261343,-542.0,0.00043271,2]
[356473117,1742506261353,-1115.0,0.00043271,2]
[356473118,1742506261363,-645.0,0.00043271,2]
[356473119,1742506261374,-1280.0,0.00043271,2]
[356473120,1742506261384,-2035.0,0.00043271,2]
[356473121,1742506261394,-642.0,0.00043271,2]
[356473122,1742506261404,-151.0,0.00043271,2]
[356473123,1742506261414,-150.19,0.00043513,2]
[356473124,1742506261423,-1015.13,0.00043637,2]
[356473125,1742506261433,-232.90044,0.000437,120]
[356473126,1742506261443,-150.0,0.000437,120]
[356473127,1742506261452,-233.0,0.00043733,90]
[356473128,1742506261462,-352.91,0.00043835,120]
[356473129,1742506261471,-2854.60201523,0.00044,30]
[356473130,1742506261481,-517.912091,0.00044,57]
[356473131,1742506261490,-150.0,0.00044075,2]
[356473132,1742506261500,-272.692,0.00044075,2]
[356473133,1742506261509,-150.0,0.00044075,2]
[356473134,1742506261518,-150.0,0.00044075,2]
[356473135,1742506261528,-151.0,0.00044075,14]
[356473136,1742506261539,-151.0,0.00044075,14]
[356473137,1742506261549,-160.687897,0.00044075,14]
[356473138,1742506261559,-160.687897,0.00044075,14]
[356473139,1742506261569,-233.0,0.000441,90]
[356473140,1742506261578,-153.0,0.00044208,2]
[356473141,1742506261588,-153.0,0.00044208,2]
[356473142,1742506261599,-153.0,0.00044208,2]
[356473143,1742506261608,-153.0,0.00044208,2]
[356473144,1742506261617,-153.0,0.00044208,2]
[356473145,1742506261627,-153.0,0.00044208,2]
[356473146,1742506261636,-153.0,0.00044208,2]
[356473147,1742506261646,-153.0,0.00044208,2]
[356473148,1742506261655,-153.0,0.00044208,2]
[356473149,1742506261665,-153.0,0.00044208,2]
[356473150,1742506261674,-153.0,0.00044208,2]
[356473151,1742506261683,-153.0,0.00044208,2]
[356473152,1742506261693,-153.0,0.00044208,2]
[356473153,1742506261702,-153.0,0.00044208,2]
[356473154,1742506261711,-153.0,0.00044208,2]
[356473155,1742506261720,-153.0,0.00044208,2]
[356473156,1742506261730,-153.0,0.00044208,2]
[356473157,1742506261739,-153.0,0.00044208,2]
[356473158,1742506261749,-153.0,0.00044208,2]
[356473159,1742506261759,-153.0,0.00044208,2]
[356473160,1742506261769,-153.0,0.00044208,2]
[356473161,1742506261778,-153.0,0.00044208,2]
[356473162,1742506261787,-153.0,0.00044208,2]
[356473163,1742506261796,-153.0,0.00044208,2]
[356473164,1742506261805,-365.74,0.00044239,2]
[356473165,1742506261815,-151.0,0.000443,14]
[356473166,1742506261824,-151.0,0.000443,14]
[356473167,1742506261835,-151.0,0.000443,14]
[356473168,1742506261844,-156.099182,0.000443,14]
[356473169,1742506261855,-163.293184,0.000443,14]
[356473170,1742506261864,-163.293185,0.000443,14]
[356473171,1742506261874,-151.0,0.000443,14]
[356473172,1742506261883,-151.0,0.000443,14]
[356473173,1742506261892,-151.0,0.000443,14]
[356473174,1742506261902,-153.2328,0.000443,14]
[356473175,1742506261914,-151.0,0.000443,14]
[356473176,1742506261924,-151.0,0.000443,14]
[356473177,1742506261933,-283.611849,0.000443,14]
[356473178,1742506261943,-283.611846,0.000443,14]
[356473179,1742506261954,-393.045796,0.000443,14]
[356473180,1742506261965,-393.045794,0.000443,14]
[356473181,1742506261976,-151.453873,0.000443,14]
[356473182,1742506261985,-151.453882,0.000443,14]
[356473183,1742506261997,-151.0,0.000443,14]
[356473184,1742506262007,-585.81,0.000443,36]
[356473185,1742506262018,-585.81,0.000443,36]
[356473186,1742506262028,-585.81,0.000443,36]
[356473187,1742506262038,-585.81,0.000443,36]
[356473188,1742506262048,-585.81,0.000443,36]
[356473189,1742506262058,-585.81,0.000443,36]
[356473190,1742506262069,-585.81,0.000443,36]
[356473191,1742506262080,-585.81,0.000443,36]
[356473192,1742506262090,-585.81,0.000443,36]
[356473193,1742506262099,-585.81,0.000443,36]
[356473194,1742506262108,-585.81,0.000443,36]
[356473195,1742506262118,-585.81,0.000443,36]
[356473196,1742506262127,-585.81,0.000443,36]
[356473197,1742506262136,-585.81,0.000443,36]
[356473198,1742506262146,-585.81,0.000443,36]
[356473199,1742506262155,-585.81,0.000443,36]
[356473200,1742506262165,-585.81,0.000443,36]
[356473201,1742506262174,-585.81,0.000443,36]
[356473202,1742506262183,-585.81,0.000443,36]
[356473203,1742506262193,-585.81,0.000443,36]
[356473204,1742506262202,-585.81,0.000443,36]
[356473205,1742506262212,-585.81,0.000443,36]
[356473206,1742506262222,-585.81,0.000443,36]
[356473207,1742506262232,-585.81,0.000443,36]
[356473208,1742506262242,-303.64213401,0.00044335,10]
[356473209,1742506262252,-153.0,0.00044526,2]
[356473210,1742506262262,-153.0,0.00044526,2]
[356473211,1742506262271,-153.0,0.00044526,2]
[356473212,1742506262281,-153.0,0.00044526,2]
[356473213,1742506262290,-153.0,0.00044526,2]
[356473214,1742506262300,-153.0,0.00044526,2]
[356473215,1742506262310,-153.0,0.00044526,2]
[356473216,1742506262319,-153.0,0.00044526,2]
[356473217,1742506262329,-153.0,0.00044526,2]
[356473218,1742506262338,-153.0,0.00044526,2]
[356473219,1742506262347,-153.0,0.00044526,2]
[356473220,1742506262356,-153.0,0.00044526,2]
[356473221,1742506262366,-153.0,0.00044526,2]
[356473222,1742506262376,-153.0,0.00044526,2]
[356473223,1742506262385,-153.0,0.00044526,2]
[356473224,1742506262395,-153.0,0.00044526,2]
[356473225,1742506262404,-153.0,0.00044526,2]
[356473226,1742506262413,-153.0,0.00044526,2]
[356473227,1742506262423,-153.0,0.00044526,2]
[356473228,1742506262432,-32336.00281558,0.0004457,2]
[356473229,1742506262442,-151.0,0.0004457,14]
[356473230,1742506262451,-550.594901,0.0004457,14]
[356473231,1742506262460,-550.594899,0.0004457,14]
[356473232,1742506262470,-151.0,0.0004457,14]
[356473233,1742506262479,-153.487853,0.0004457,14]
[356473234,1742506262488,-153.487859,0.0004457,14]
[356473235,1742506262497,-176.954312,0.0004457,14]
[356473236,1742506262506,-176.954315,0.0004457,14]
[356473237,1742506262516,-198.0,0.000447,120]
[356473238,1742506262525,-150.19,0.00044722,2]
[356473239,1742506262534,-232.90044,0.000449,120]
[356473240,1742506262544,-150.0,0.000449,120]
[356473241,1742506262554,-259.25008503,0.000449,120]
[356473242,1742506262563,-259.25008487,0.000449,120]
[356473243,1742506262572,-259.25008487,0.000449,120]
[356473244,1742506262581,-259.25008487,0.000449,120]
[356473245,1742506262591,-151.0,0.00045,120]
[356473246,1742506262600,-166.97777778,0.00045,120]
[356473247,1742506262610,-500.0,0.00045,2]
[356473248,1742506262629,-2665.9804351,0.00045,120]
[356473249,1742506262639,-7586.008936,0.00045,120]
[356473250,1742506262649,-5907.92,0.00045,120]
[356473251,1742506262659,-1000.0,0.00045,60]
[356473252,1742506262668,-850.0,0.00045,2]
[356473253,1742506262678,-151.0,0.00045,14]
[356473254,1742506262687,-352.91,0.00045205,120]
[356473255,1742506262697,-15612.70869851,0.00045444,2]
[356473256,1742506262825,-1687.99,0.00045753,120]